bitfinex/quotes_BTCUSD_20251202
["timestamp","ask_amount","ask_price","bid_price","bid_amount"]
[1764667195059,0.23063262,86718.0,86717.0,0.02278]
[1764667195555,0.23063262,86718.0,86717.0,0.09977]
[1764667196290,0.23063262,86718.0,86717.0,0.10077]
[1764667196434,0.23063262,86718.0,86717.0,0.10377]
[1764667196765,0.23063262,86718.0,86717.0,0.19129384]
[1764667198638,0.01153123,86721.0,86717.0,0.19129384]
[1764667198841,0.23062996,86719.0,86718.0,0.0317]
[1764667199059,0.23062996,86719.0,86718.0,0.04529]
[1764667199265,0.23062996,86719.0,86718.0,0.15392473]
[1764667200150,0.23062996,86719.0,86718.0,0.15692473]
[1764667200741,0.23062996,86719.0,86718.0,0.003]
[1764667200942,0.25554071,86719.0,86718.0,0.003]
[1764667201730,0.23062787,86720.0,86718.0,0.003]
[1764667201938,0.02490392,86720.0,86719.0,0.04529]
[1764667202137,0.02490392,86724.0,86719.0,0.07699]
[1764667202339,0.0115303,86728.0,86725.0,0.0317]
[1764667202538,0.23061135,86726.0,86725.0,0.0317]
[1764667202763,0.2421416,86727.0,86726.0,0.04529]
[1764667202989,0.25550344,86731.0,86726.0,0.04529]
[1764667202990,0.00011538,86740.0,86728.0,0.0115303]
[1764667203196,0.01808,86761.0,86739.0,0.05448]
[1764667203197,0.01152604,86760.0,86739.0,0.05448]
[1764667203404,0.01152644,86757.0,86752.0,0.02278]
[1764667203597,0.11529284,86755.0,86752.0,0.02278]
[1764667203773,0.01152618,86759.0,86752.0,0.25331706]
[1764667203990,0.24205883,86756.0,86754.0,0.0317]
[1764667204189,0.23053426,86755.0,86754.0,0.012337]
[1764667204395,0.24207022,86752.0,86746.0,0.23055784]
[1764667204597,0.01152737,86750.0,86745.0,0.23055976]
[1764667204808,0.01152751,86749.0,86745.0,0.23055976]
[1764667205003,0.24207804,86749.0,86746.0,0.05354192]
[1764667205214,0.23055357,86748.0,86746.0,0.05354192]
[1764667205423,0.23056083,86745.0,86744.0,0.010213]
[1764667205821,0.23056456,86744.0,86739.0,0.25335582]
[1764667206067,0.23056181,86745.0,86743.0,0.01021]
[1764667206255,0.23056349,86744.0,86743.0,0.01021]
[1764667207028,0.01152804,86745.0,86743.0,0.01021]
[1764667207225,0.01152804,86745.0,86744.0,0.05287249]
[1764667207226,0.24208887,86745.0,86744.0,0.05287249]
[1764667207430,0.24208887,86745.0,86743.0,0.01021]
[1764667207832,0.23056349,86744.0,86743.0,0.01021]
[1764667208039,0.24208887,86745.0,86743.0,0.01021]
[1764667208446,0.24208887,86745.0,86743.0,0.01121]
[1764667208642,0.24208887,86745.0,86743.0,0.001]
[1764667208643,0.23056349,86744.0,86743.0,0.001]
[1764667208825,0.01152844,86742.0,86739.0,0.02278]
[1764667209029,0.24209466,86743.0,86739.0,0.02278]
[1764667209234,0.01152844,86742.0,86739.0,0.02278]
[1764667209431,0.23056349,86744.0,86740.0,0.23057287]
[1764667209659,0.01152817,86744.0,86741.0,0.23057136]
[1764667209832,0.01152804,86745.0,86742.0,0.2305687]
[1764667210256,0.01152711,86752.0,86744.0,0.03127]
[1764667210482,0.01152764,86748.0,86745.0,0.03127]
[1764667210677,0.24207823,86749.0,86746.0,0.01227587]
[1764667211467,0.24207823,86749.0,86746.0,0.24283252]
[1764667211685,0.24207823,86749.0,86747.0,0.23055541]
[1764667212151,0.24207528,86750.0,86747.0,0.23055541]
[1764667212965,0.01152737,86750.0,86747.0,0.23055541]
[1764667213165,0.01152737,86750.0,86748.0,0.30657956]
[1764667213369,0.01152737,86750.0,86748.0,0.07602761]
[1764667213728,0.2305502,86749.0,86748.0,0.07602761]
[1764667215478,0.10376613,86752.0,86748.0,0.07602761]
[1764667215628,0.10376613,86752.0,86746.0,0.01227587]
[1764667215818,0.11529324,86752.0,86749.0,0.23054757]
[1764667216257,0.24206749,86753.0,86750.0,0.23054631]
[1764667216468,8.867e-05,86760.0,86759.0,0.23052363]
[1764667216672,8.867e-05,86760.0,86759.0,0.33817035]
[1764667216848,0.23060964,86760.0,86759.0,0.10764672]
[1764667217168,0.23060964,86760.0,86759.0,0.06167672]
[1764667217371,8.867e-05,86760.0,86759.0,0.06167672]
[1764667217592,0.23060964,86760.0,86759.0,0.03040672]
[1764667218166,0.23053895,86754.0,86752.0,0.01922]
[1764667218364,0.01152671,86755.0,86752.0,0.01922]
[1764667218566,0.24206588,86755.0,86752.0,0.24976202]
[1764667219779,0.01152737,86750.0,86742.0,0.24209711]
[1764667219954,0.24207631,86750.0,86747.0,0.25816419]
[1764667220155,0.2421379,86760.0,86750.0,0.01152737]
[1764667220339,0.01152631,86758.0,86753.0,0.23053457]
[1764667220542,0.23053772,86754.0,86751.0,0.23054272]
[1764667220790,0.01152671,86755.0,86752.0,0.29251734]
[1764667221102,0.23053932,86754.0,86752.0,0.06197533]
[1764667221657,0.3343057,86753.0,86752.0,0.06197533]
[1764667221867,0.2305502,86749.0,86748.0,0.01922]
[1764667222066,0.01152751,86749.0,86742.0,0.23056805]
[1764667222266,0.24207843,86749.0,86748.0,0.01922]
[1764667222516,0.01152817,86744.0,86741.0,0.01021]
[1764667222718,0.01152817,86744.0,86739.0,0.02278]
[1764667222719,0.01152844,86742.0,86739.0,0.02278]
[1764667222961,0.23057265,86741.0,86739.0,0.02278]
[1764667223957,0.23057412,86740.0,86739.0,0.02278]
[1764667224468,0.23057412,86740.0,86739.0,0.02478]
[1764667225176,0.23057265,86741.0,86739.0,0.02278]
[1764667225352,0.23057265,86741.0,86739.0,0.02378]
[1764667225535,0.23057265,86741.0,86739.0,0.02578]
[1764667226051,0.23057265,86741.0,86739.0,0.02478]
[1764667226374,0.24209872,86742.0,86739.0,0.25635448]
[1764667226574,0.24209872,86742.0,86739.0,0.25535448]
[1764667226777,0.24209872,86742.0,86739.0,0.25335448]
[1764667226915,0.24209872,86742.0,86739.0,0.25635448]
[1764667227120,0.24209493,86743.0,86740.0,0.31037846]
[1764667227776,0.24209126,86745.0,86742.0,0.23056661]
[1764667228085,0.24208975,86745.0,86742.0,0.23056661]
[1764667228490,0.01152804,86745.0,86743.0,0.23056551]
[1764667228690,0.01152751,86749.0,86744.0,0.04279817]
[1764667228908,0.24208188,86748.0,86745.0,0.02596892]
[1764667229097,0.24208188,86748.0,86745.0,0.25652865]
[1764667229336,0.23053734,86754.0,86747.0,0.03127]
[1764667229509,8.867e-05,86760.0,86750.0,0.01152737]
[1764667229510,0.55352591,86759.0,86750.0,0.01152737]
[1764667229714,0.323,86759.0,86758.0,0.03127]
[1764667229958,8.867e-05,86760.0,86758.0,0.03127]
[1764667230172,0.23060998,86760.0,86758.0,0.03127]
[1764667230783,0.23152363,86759.0,86758.0,0.03127]
[1764667230990,0.23053033,86757.0,86755.0,0.01021]
[1764667231143,0.01152631,86758.0,86755.0,0.01021]
[1764667231144,0.24205281,86758.0,86756.0,0.07961597]
[1764667231345,0.01152631,86758.0,86756.0,0.31014682]
[1764667231547,0.24205332,86758.0,86756.0,0.31014717]
[1764667231748,0.24205332,86758.0,86756.0,0.07961597]
[1764667232024,0.2305316,86756.0,86755.0,0.01021]
[1764667233702,0.23054223,86752.0,86751.0,0.01377918]
[1764667234118,0.24208359,86747.0,86743.0,0.24978577]
[1764667234344,0.01152777,86747.0,86745.0,0.23055941]
[1764667236998,0.00108867,86760.0,86759.0,0.31106363]
[1764667237200,8.867e-05,86760.0,86759.0,0.42347922]
[1764667237562,8.867e-05,86760.0,86759.0,0.42447922]
[1764667238450,8.867e-05,86760.0,86759.0,0.42547922]
[1764667239952,8.867e-05,86760.0,86759.0,0.19495559]
[1764667240158,8.867e-05,86760.0,86759.0,0.37651922]
[1764667240565,8.867e-05,86760.0,86759.0,0.42547922]
[1764667240992,8.867e-05,86760.0,86759.0,0.14599559]
[1764667241193,0.23060964,86760.0,86759.0,0.002]
[1764667241400,8.867e-05,86760.0,86759.0,0.002]
[1764667241576,8.867e-05,86760.0,86759.0,0.23252363]
[1764667241804,8.867e-05,86760.0,86759.0,0.26410363]
[1764667242009,8.867e-05,86760.0,86759.0,0.34924186]
[1764667242247,8.867e-05,86760.0,86759.0,0.39820186]
[1764667246615,0.00222539,86775.0,86774.0,0.23048378]
[1764667246854,0.00222539,86775.0,86774.0,0.26206378]
[1764667247082,0.00222539,86775.0,86774.0,0.31102378]
[1764667247965,0.00222539,86775.0,86774.0,0.26206378]
[1764667248430,0.00222539,86775.0,86774.0,0.31102378]
[1764667248906,0.00322539,86775.0,86774.0,0.41768011]
[1764667251715,0.00222539,86775.0,86774.0,0.41768011]
[1764667252112,0.00322539,86775.0,86774.0,0.41768011]
[1764667260957,0.00322539,86775.0,86774.0,0.13823633]
[1764667261136,0.23370651,86775.0,86773.0,0.02278]
[1764667261301,0.23048378,86774.0,86773.0,0.02278]
[1764667261739,0.00322539,86775.0,86773.0,0.33380644]
[1764667261940,0.00322539,86775.0,86774.0,0.26206378]
[1764667262151,0.00322539,86775.0,86774.0,0.31102378]
[1764667262353,0.00222539,86775.0,86774.0,0.42075522]
[1764667264283,0.00099539,86775.0,86774.0,0.42075522]
[1764667264507,0.23040697,86803.0,86798.0,0.23041792]
[1764667264710,0.34569609,86802.0,86799.0,0.01669]
[1764667264910,0.10376613,86802.0,86799.0,0.01669]
[1764667265163,0.10376613,86802.0,86800.0,0.00771715]
[1764667265494,0.10376613,86802.0,86800.0,0.23813155]
[1764667265826,0.23041209,86801.0,86800.0,0.00771715]
[1764667265994,0.23041209,86801.0,86799.0,0.01669]
[1764667266234,0.23041474,86800.0,86799.0,0.01669]
[1764667267847,0.23241474,86800.0,86799.0,0.01669]
[1764667268016,0.01152153,86794.0,86791.0,0.01669]
[1764667268235,0.23043586,86793.0,86791.0,0.01669]
[1764667268436,0.0115214,86795.0,86792.0,0.00631426]
[1764667268854,0.23043152,86794.0,86792.0,0.00631426]
[1764667269258,0.24194976,86795.0,86792.0,0.00631426]
[1764667269645,0.011521,86798.0,86792.0,0.00631426]
[1764667269646,0.24194126,86798.0,86792.0,0.00631426]
[1764667270025,0.011521,86798.0,86795.0,0.23042697]
[1764667270184,0.0003847,86803.0,86800.0,0.23041302]
[1764667270600,0.0003847,86803.0,86802.0,0.28302943]
[1764667271028,0.0003847,86803.0,86802.0,0.32992943]
[1764667271560,0.0023847,86803.0,86802.0,0.32992943]
[1764667271776,0.0003847,86803.0,86802.0,0.32992943]
[1764667271946,0.0003847,86803.0,86802.0,0.42050617]
[1764667272397,0.0013847,86803.0,86802.0,0.42050617]
[1764667272598,0.0003847,86803.0,86802.0,0.42050617]
[1764667273219,0.0002,86810.0,86809.0,0.23039085]
[1764667273454,0.00031531,86810.0,86809.0,0.32564085]
[1764667273660,0.00031531,86810.0,86809.0,0.35220225]
[1764667274776,0.00031531,86810.0,86809.0,0.35320225]
[1764667274944,0.00031531,86810.0,86809.0,0.35220225]
[1764667276628,0.00031531,86810.0,86809.0,0.35320225]
[1764667277169,0.00142218,86810.0,86809.0,0.35320225]
[1764667277370,0.00142218,86810.0,86809.0,0.35420225]
[1764667277845,0.00142218,86810.0,86809.0,0.35320225]
[1764667278031,0.00142218,86810.0,86809.0,0.35420225]
[1764667278448,0.00142218,86810.0,86809.0,0.35220225]
[1764667278756,0.00142218,86810.0,86809.0,0.35520225]
[1764667279134,0.00142218,86810.0,86809.0,0.35420225]
[1764667279537,0.00142218,86810.0,86809.0,0.35520225]
[1764667281395,0.00142218,86810.0,86809.0,0.33696225]
[1764667281600,0.00142218,86810.0,86809.0,0.35416225]
[1764667281991,0.00142218,86810.0,86809.0,0.35316225]
[1764667282414,0.00142218,86810.0,86809.0,0.35416225]
[1764667292580,0.00142218,86810.0,86809.0,0.36669225]
[1764667297964,0.00142218,86810.0,86809.0,0.34849225]
[1764667298152,0.00142218,86810.0,86809.0,0.36669225]
[1764667301078,0.00142218,86810.0,86809.0,0.36569225]
[1764667301464,0.00142218,86810.0,86809.0,0.36769225]
[1764667302084,0.00142218,86810.0,86809.0,0.36669225]
[1764667302293,0.00142218,86810.0,86809.0,0.36769225]
[1764667303413,2.18e-06,86810.0,86809.0,0.36769225]
[1764667303648,0.0002,86820.0,86819.0,0.23036432]
[1764667303832,0.0004,86830.0,86829.0,0.23033779]
[1764667304034,0.0004,86830.0,86829.0,0.27811779]
[1764667304243,0.0004,86830.0,86829.0,0.32413779]
[1764667305222,0.0004,86830.0,86829.0,0.32513779]
[1764667305423,0.07363078,86847.0,86846.0,0.01752]
[1764667305628,0.00011525,86847.0,86846.0,0.06878622]
[1764667305799,0.00011525,86847.0,86846.0,0.09836622]
[1764667306225,0.00011525,86847.0,86846.0,0.06878622]
[1764667306226,0.2304053,86847.0,86846.0,0.06878622]
[1764667306628,0.2304053,86847.0,86832.0,0.01752]
[1764667306629,0.01151609,86835.0,86832.0,0.01752]
[1764667306836,0.23032717,86833.0,86832.0,0.01752]
[1764667307035,0.23032452,86834.0,86832.0,0.01752]
[1764667307314,0.23031669,86837.0,86832.0,0.01752]
[1764667307315,0.23032037,86836.0,86832.0,0.01752]
[1764667307642,0.24182869,86839.0,86836.0,0.02958]
[1764667307847,0.01151503,86843.0,86837.0,0.03301689]
[1764667308026,0.24181858,86842.0,86838.0,0.23031182]
[1764667308228,1.271461,86846.0,86842.0,0.02958]
[1764667308444,0.00011525,86847.0,86845.0,0.02958]
[1764667308655,0.00011525,86847.0,86846.0,0.02958]
[1764667308993,0.00011525,86847.0,86846.0,0.31743255]
[1764667309145,0.00011525,86847.0,86846.0,0.36345255]
[1764667311035,0.00011525,86847.0,86846.0,0.05755985]
[1764667311209,0.24180778,86846.0,86840.0,0.24850847]
[1764667311412,0.23029589,86845.0,86841.0,0.23030507]
[1764667311732,0.00101142,86842.0,86841.0,0.23030507]
[1764667312165,0.00101142,86842.0,86840.0,0.24850822]
[1764667312335,0.01151503,86843.0,86841.0,0.31372946]
[1764667312516,0.0115149,86844.0,86841.0,0.31372946]
[1764667312713,0.24181354,86844.0,86841.0,0.31372946]
[1764667313087,0.24181354,86844.0,86837.0,0.03301689]
[1764667313088,0.23031126,86839.0,86837.0,0.03301689]
[1764667313291,0.24183941,86835.0,86832.0,0.01752]
[1764667313529,0.23032702,86834.0,86832.0,0.01752]
[1764667314916,0.23032717,86833.0,86832.0,0.01752]
[1764667315122,0.01151662,86831.0,86828.0,0.2303379]
[1764667315322,0.23032717,86833.0,86830.0,0.23033513]
[1764667315323,0.24184352,86833.0,86830.0,0.23033513]
[1764667315541,0.01151609,86835.0,86832.0,0.23032983]
[1764667315864,0.01151609,86835.0,86832.0,0.24784983]
[1764667316089,0.26337418,86844.0,86833.0,0.23032717]
[1764667316253,0.02503222,86850.0,86837.0,0.02958]
[1764667316254,1.271461,86843.0,86837.0,0.02958]
[1764667316456,0.23030836,86841.0,86838.0,0.01443114]
[1764667316657,0.24182365,86841.0,86838.0,0.01443114]
[1764667316856,0.0840362,86841.0,86838.0,0.01443114]
[1764667317247,0.23030863,86840.0,86838.0,0.01443114]
[1764667317477,0.0840362,86841.0,86838.0,0.24474397]
[1764667317817,0.001,86841.0,86838.0,0.01443114]
[1764667317974,0.001,86841.0,86840.0,0.02958]
[1764667318177,0.23030596,86841.0,86840.0,0.02958]
[1764667318600,0.00011525,86847.0,86840.0,0.02958]
[1764667318800,0.00011525,86847.0,86845.0,0.23029535]
[1764667318801,1.271461,86846.0,86845.0,0.23029535]
[1764667319209,1.271461,86846.0,86843.0,0.24181473]
[1764667319210,1.271461,86846.0,86844.0,0.23029593]
[1764667319581,1.2725672,86845.0,86844.0,0.23029593]
[1764667320220,1.2725672,86845.0,86844.0,0.25987593]
[1764667320417,1.2725672,86845.0,86844.0,0.30589593]
[1764667320735,0.0011062,86845.0,86844.0,0.41632725]
[1764667321277,0.0031062,86845.0,86844.0,0.41632725]
[1764667321476,0.0011062,86845.0,86844.0,0.41632725]
[1764667321899,0.0021062,86845.0,86844.0,0.41632725]
[1764667322106,0.0011062,86845.0,86844.0,0.41732725]
[1764667322710,0.0011062,86845.0,86844.0,0.73932725]
[1764667322911,0.0011062,86845.0,86844.0,0.74032725]
[1764667323391,0.01151105,86873.0,86844.0,0.74032725]
[1764667323392,0.0002,86890.0,86884.0,0.23019059]
[1764667323598,0.00058432,86890.0,86889.0,0.27727873]
[1764667323804,0.00058432,86890.0,86882.0,0.01824]
[1764667324008,0.00058432,86890.0,86878.0,0.01151039]
[1764667324009,0.00058432,86890.0,86889.0,0.02958]
[1764667324546,0.00058432,86890.0,86889.0,0.0756]
[1764667325672,0.00058432,86890.0,86889.0,0.0766]
[1764667325875,0.00258432,86890.0,86889.0,0.0766]
[1764667326036,0.00258432,86890.0,86889.0,0.09384]
[1764667326233,0.00258432,86890.0,86889.0,0.13718367]
[1764667327176,0.00058432,86890.0,86889.0,0.13718367]
[1764667327411,0.0002,86910.0,86909.0,0.23012576]
[1764667327540,0.00031522,86910.0,86909.0,0.26204576]
[1764667327739,0.00031522,86910.0,86909.0,0.36323053]
[1764667328671,0.00331522,86910.0,86909.0,0.36423053]
[1764667328916,0.00031522,86910.0,86909.0,0.36423053]
[1764667329121,0.00031522,86910.0,86909.0,0.36323053]
[1764667329288,0.00236764,86910.0,86909.0,0.36323053]
[1764667329488,0.00236764,86910.0,86909.0,0.36423053]
[1764667330355,0.00236764,86910.0,86909.0,0.36523053]
[1764667331538,0.00236764,86910.0,86909.0,0.38347053]
[1764667342532,0.07425603,86929.0,86926.0,0.23008073]
[1764667342730,0.07425603,86929.0,86927.0,0.04716702]
[1764667343146,0.08575967,86929.0,86927.0,0.04716702]
[1764667343668,0.01150364,86929.0,86927.0,0.04716702]
[1764667343888,0.02936,86928.0,86927.0,0.04716702]
[1764667344049,0.0115039,86927.0,86924.0,0.23008076]
[1764667344247,0.01150377,86928.0,86924.0,0.23008076]
[1764667344447,0.002,86929.0,86926.0,0.2300802]
[1764667344644,0.24158238,86927.0,86909.0,0.08492105]
[1764667344848,0.01150377,86928.0,86908.0,0.01832]
[1764667344849,0.01150536,86916.0,86908.0,0.01832]
[1764667345047,0.01150602,86911.0,86908.0,0.01832]
[1764667345540,0.01150562,86914.0,86908.0,0.01832]
[1764667345541,0.01150575,86913.0,86908.0,0.01832]
[1764667345739,0.01150562,86914.0,86908.0,0.01832]
[1764667345934,0.01150589,86912.0,86908.0,0.01832]
[1764667346187,0.01150589,86912.0,86909.0,0.02599601]
[1764667346379,0.01150589,86912.0,86909.0,0.25612135]
[1764667346560,0.01150575,86913.0,86909.0,0.25611931]
[1764667346966,0.01150589,86912.0,86909.0,0.02599601]
[1764667347160,0.24162389,86912.0,86909.0,0.25612081]
[1764667347386,0.23012046,86911.0,86910.0,0.02984547]
[1764667347584,0.01150602,86911.0,86904.0,0.23013895]
[1764667347857,0.25351104,86915.0,86905.0,0.01150681]
[1764667347992,0.24162116,86913.0,86905.0,0.01150681]
[1764667348198,0.01150575,86913.0,86910.0,0.23012231]
[1764667348902,0.01150602,86911.0,86904.0,0.00111522]
[1764667349107,0.24162378,86912.0,86909.0,0.23012338]
[1764667349348,0.01150602,86911.0,86905.0,0.25230916]
[1764667349742,0.01150602,86911.0,86908.0,0.23012694]
[1764667350171,0.01150602,86911.0,86909.0,0.23012527]
[1764667350331,0.24162621,86912.0,86909.0,0.23012527]
[1764667350531,0.24162621,86912.0,86910.0,0.07241835]
[1764667351268,0.01150575,86913.0,86910.0,0.07241835]
[1764667351486,0.01150575,86913.0,86911.0,0.23011803]
[1764667351688,1.271461,86920.0,86915.0,0.23010839]
[1764667351882,0.323,86921.0,86917.0,0.23010417]
[1764667352223,1.271461,86920.0,86919.0,0.23009928]
[1764667352574,1.271461,86920.0,86919.0,0.26201928]
[1764667352976,1.271461,86920.0,86919.0,0.23009928]
[1764667353181,1.271461,86920.0,86918.0,0.26295494]
[1764667353182,1.300821,86920.0,86918.0,0.03285517]
[1764667353381,0.01150549,86915.0,86912.0,0.23011559]
[1764667353601,0.23011269,86914.0,86911.0,0.23011522]
[1764667354055,0.24161831,86914.0,86911.0,0.23011522]
[1764667354216,0.01150562,86914.0,86911.0,0.23011522]
[1764667354415,0.01150562,86914.0,86912.0,0.07470668]
[1764667354655,0.01150589,86912.0,86909.0,0.23012556]
[1764667354840,0.24162598,86912.0,86909.0,0.23012556]
[1764667355066,0.24162598,86912.0,86910.0,0.23012308]
[1764667355304,0.24162598,86912.0,86909.0,0.23012556]
[1764667355494,0.01150615,86910.0,86905.0,0.2407947]
[1764667355726,0.23013105,86907.0,86906.0,0.03759018]
[1764667355932,0.23013635,86905.0,86904.0,0.00011522]
[1764667356110,1.53258735,86905.0,86904.0,0.00011522]
[1764667356256,1.57971735,86905.0,86904.0,0.00011522]
[1764667357064,1.92755266,86905.0,86904.0,0.00011522]
[1764667357484,1.92855266,86905.0,86904.0,0.00011522]
[1764667358621,1.90371735,86905.0,86904.0,0.00011522]
[1764667358851,1.85658735,86905.0,86904.0,0.00011522]
[1764667359614,1.53358735,86905.0,86904.0,0.00011522]
[1764667362921,1.50259735,86905.0,86904.0,0.00011522]
[1764667363350,1.50259735,86905.0,86904.0,0.02314209]
[1764667363551,1.50259735,86905.0,86904.0,0.00011522]
[1764667363711,1.53358735,86905.0,86904.0,0.00011522]
[1764667364311,1.58071735,86905.0,86904.0,0.00011522]
[1764667364493,1.90371735,86905.0,86904.0,0.00011522]
[1764667368495,1.92851587,86905.0,86904.0,0.00011522]
[1764667369665,1.92751587,86905.0,86904.0,0.00011522]
[1764667370087,1.93051587,86905.0,86904.0,0.00011522]
[1764667370467,1.93151587,86905.0,86904.0,0.00011522]
[1764667377482,1.94947587,86905.0,86904.0,0.00011522]
[1764667378316,2.01199886,86905.0,86904.0,0.00011522]
[1764667378729,2.03019886,86905.0,86904.0,0.00011522]
[1764667380338,2.07155757,86905.0,86904.0,0.00011522]
[1764667380742,2.05335757,86905.0,86904.0,0.00011522]
[1764667380948,2.07155757,86905.0,86904.0,0.00011522]
[1764667381348,2.05335757,86905.0,86904.0,0.00011522]
[1764667381633,1.94947587,86905.0,86904.0,0.00011522]
[1764667381831,1.64467587,86905.0,86904.0,0.00011522]
[1764667382067,1.94971587,86905.0,86904.0,0.00011522]
[1764667382265,1.62671587,86905.0,86904.0,0.00011522]
[1764667382883,1.94571587,86905.0,86904.0,0.00011522]
[1764667383246,1.97974403,86905.0,86904.0,0.00011522]
[1764667384165,1.94871587,86905.0,86904.0,0.00011522]
[1764667384528,1.94971587,86905.0,86904.0,0.00011522]
[1764667385699,0.02879852,86905.0,86904.0,0.07195522]
[1764667385893,0.004,86905.0,86904.0,0.04033353]
[1764667386098,1.347201,86905.0,86904.0,0.01005353]
[1764667386338,1.69499952,86905.0,86904.0,0.00011522]
[1764667386510,1.69199952,86905.0,86904.0,0.00011522]
[1764667386714,1.69499952,86905.0,86904.0,0.00011522]
[1764667387318,0.35079852,86905.0,86904.0,0.00011522]
[1764667387743,0.35179852,86905.0,86904.0,0.00011522]
[1764667387942,0.34884857,86905.0,86904.0,0.00011522]
[1764667388206,0.37686857,86905.0,86904.0,0.00011522]
[1764667388626,0.42058857,86905.0,86904.0,0.00011522]
[1764667388827,0.34884857,86905.0,86904.0,0.00011522]
[1764667389045,0.001,86905.0,86904.0,0.00011522]
[1764667391374,0.23113635,86905.0,86904.0,0.00011522]
[1764667392169,0.001,86905.0,86904.0,0.00011522]
[1764667392388,0.001,86905.0,86904.0,0.1244534]
[1764667392593,0.001,86905.0,86904.0,0.1403734]
[1764667392829,0.001,86905.0,86904.0,0.3705124]
[1764667394022,0.01150642,86908.0,86906.0,0.23013357]
[1764667394231,0.10376613,86911.0,86906.0,0.23013357]
[1764667394436,0.23011341,86914.0,86910.0,0.2301208]
[1764667394748,0.01150549,86915.0,86907.0,0.34247134]
[1764667394749,0.23012841,86908.0,86907.0,0.04050286]
[1764667394898,0.23012711,86909.0,86906.0,0.23013347]
[1764667395096,0.24161794,86915.0,86905.0,0.01150681]
[1764667395338,0.24162115,86913.0,86910.0,0.23012289]
[1764667395543,0.24262115,86913.0,86910.0,0.23012289]
[1764667395750,0.24162608,86912.0,86911.0,0.07853443]
[1764667396052,0.01150589,86912.0,86911.0,0.07853443]
[1764667396193,0.01150589,86912.0,86909.0,0.23012492]
[1764667396194,0.24162371,86912.0,86909.0,0.23012492]
[1764667396910,0.24162782,86911.0,86908.0,0.23012668]
[1764667397108,0.24162782,86911.0,86907.0,0.23013028]
[1764667397109,0.01150615,86910.0,86907.0,0.23013028]
[1764667397347,0.01150602,86911.0,86906.0,0.01150668]
[1764667397548,0.24162371,86912.0,86909.0,0.26040574]
[1764667397768,0.23012057,86911.0,86910.0,0.05897502]
[1764667397926,0.01150655,86907.0,86905.0,0.2301362]
[1764667398122,0.01150589,86912.0,86904.0,0.01162217]
[1764667398346,0.01150615,86910.0,86907.0,0.23012847]
[1764667399115,0.01150615,86910.0,86909.0,0.03028]
[1764667399328,0.24162866,86911.0,86909.0,0.03028]
[1764667399528,0.24162866,86911.0,86910.0,0.05552357]
[1764667400485,0.01150496,86919.0,86910.0,0.05552357]
[1764667400698,0.23011782,86912.0,86911.0,0.01699]
[1764667401150,0.01150628,86909.0,86906.0,0.01699]
[1764667401353,0.001,86911.0,86908.0,0.26040706]
[1764667401580,0.24162137,86913.0,86910.0,0.23012311]
[1764667401785,0.24162137,86913.0,86910.0,0.26040311]
[1764667402025,0.001,86912.0,86910.0,0.26040311]
[1764667402297,0.001,86912.0,86911.0,0.23012046]
[1764667402446,0.001,86912.0,86911.0,0.26040046]
[1764667402647,0.001,86912.0,86911.0,0.41081338]
[1764667403624,0.24162025,86914.0,86912.0,0.23011685]
[1764667403823,0.24162025,86914.0,86911.0,0.41081338]
[1764667404046,0.24162025,86914.0,86913.0,0.01699]
[1764667404663,1.271461,86921.0,86917.0,0.23010458]
[1764667404964,0.24159664,86922.0,86917.0,0.23010458]
[1764667405108,0.24159343,86923.0,86918.0,0.23010048]
[1764667405508,0.24159695,86922.0,86919.0,0.23009762]
[1764667405986,0.01150483,86920.0,86915.0,0.04156]
[1764667406219,0.24160336,86920.0,86916.0,0.00905824]
[1764667406412,0.01150469,86921.0,86916.0,0.00905824]
[1764667406578,0.01150456,86922.0,86918.0,0.23010099]
[1764667406579,0.24159599,86922.0,86918.0,0.23010099]
[1764667406774,0.24160073,86921.0,86918.0,0.23010099]
[1764667407181,0.33384994,86925.0,86921.0,0.01779]
[1764667407404,0.23008811,86924.0,86922.0,0.00799136]
[1764667407605,0.23008869,86923.0,86922.0,0.00799136]
[1764667407762,0.25810869,86923.0,86922.0,0.00799136]
[1764667407971,0.23010458,86917.0,86916.0,0.00905824]
[1764667408223,0.24161748,86916.0,86913.0,0.01699]
[1764667408425,0.23010193,86918.0,86913.0,0.24710485]
[1764667408597,0.01150496,86919.0,86913.0,0.01699]
[1764667408799,0.01150536,86916.0,86913.0,0.01699]
[1764667409238,0.23011252,86914.0,86906.0,0.01699]
[1764667409475,0.01150575,86913.0,86907.0,0.02631711]
[1764667409618,0.24162009,86914.0,86910.0,0.23012238]
[1764667409990,0.23011866,86912.0,86910.0,0.23012238]
[1764667410155,0.01150602,86911.0,86909.0,0.23012506]
[1764667410374,0.24162455,86912.0,86911.0,0.03028]
[1764667410562,0.24162172,86913.0,86911.0,0.03028]
[1764667410979,0.24162172,86913.0,86911.0,0.26039971]
[1764667411202,0.24162112,86913.0,86912.0,0.03028]
[1764667411343,0.23010745,86916.0,86912.0,0.03028]
[1764667411544,0.2416098,86917.0,86915.0,0.01699]
[1764667411753,0.23010722,86916.0,86915.0,0.01699]
[1764667413166,0.2416106,86917.0,86915.0,0.01699]
[1764667413364,0.24160618,86919.0,86917.0,0.23010453]
[1764667413520,0.24159788,86922.0,86916.0,0.28848228]
[1764667413521,0.323,86921.0,86916.0,0.28848228]
[1764667413718,0.01150496,86919.0,86916.0,0.0583777]
[1764667414023,0.24160722,86918.0,86916.0,0.23010581]
[1764667414241,0.24160631,86919.0,86916.0,0.23010544]
[1764667414530,0.00025246,86926.0,86920.0,0.23009664]
[1764667414730,0.00025246,86926.0,86925.0,0.02946]
[1764667415049,0.23033321,86926.0,86925.0,0.10189048]
[1764667415251,0.00025246,86926.0,86925.0,0.33197388]
[1764667415657,0.00025246,86926.0,86925.0,0.10189048]
[1764667416066,0.00025246,86926.0,86925.0,0.14670048]
[1764667416264,0.00025246,86926.0,86925.0,0.37678388]
[1764667417366,0.00225246,86926.0,86925.0,0.37678388]
[1764667418120,0.00025246,86926.0,86925.0,0.37678388]
[1764667418764,0.00125246,86926.0,86925.0,0.37678388]
[1764667421191,0.00125246,86926.0,86925.0,0.07243048]
[1764667421192,0.23133321,86926.0,86925.0,0.07243048]
[1764667421398,0.23009134,86922.0,86921.0,0.00457]
[1764667421903,0.24158757,86925.0,86921.0,0.03504]
[1764667422105,0.0115043,86924.0,86921.0,0.03504]
[1764667422490,0.0115043,86924.0,86922.0,0.04481]
[1764667422491,0.24159278,86924.0,86922.0,0.04481]
[1764667422700,0.24159278,86924.0,86923.0,0.03047]
[1764667422901,0.24159278,86924.0,86923.0,0.10978443]
[1764667423107,0.00025246,86926.0,86923.0,0.38468098]
[1764667423311,0.00025246,86926.0,86925.0,0.03047]
[1764667423571,0.00025246,86926.0,86925.0,0.2605534]
[1764667423780,0.00025246,86926.0,86925.0,0.3053634]
[1764667423988,0.00025246,86926.0,86925.0,0.39490753]
[1764667424444,0.00125246,86926.0,86925.0,0.39490753]
[1764667424661,0.00025246,86926.0,86925.0,0.41310753]